fUST/lending_fUST_20250930
["ID","MTS","AMOUNT","RATE_DAILY","PERIOD"]
[388451459,1759174252971,-369.361182,0.00023479,7]
[388451460,1759174252981,-480.0,0.00023479,2]
[388451461,1759174252991,-369.361182,0.00023479,7]
[388451462,1759174253000,-369.361182,0.00023479,7]
[388451463,1759174253011,-369.361182,0.00023479,7]
[388451464,1759174253020,-772.759636,0.00023479,7]
[388451465,1759174253029,-772.759636,0.00023479,7]
[388451466,1759174253040,-151.0,0.00023479,7]
[388451467,1759174253050,-772.759636,0.00023479,7]
[388451468,1759174253060,-424.49584015,0.00023479,2]
[388451469,1759174253070,-772.759636,0.00023479,7]
[388451470,1759174253080,-480.0,0.00023479,2]
[388451471,1759174253090,-486.38,0.00023479,2]
[388451472,1759174253100,-151.0,0.00023479,7]
[388451473,1759174253110,-500.0,0.00023521,2]
[388451474,1759174253120,-500.0,0.00023521,2]
[388451475,1759174253130,-1000.0,0.00023521,2]
[388451476,1759174253140,-517.07436645,0.00023521,2]
[388451477,1759174253150,-1000.0,0.00023521,2]
[388451478,1759174253160,-605.27830802,0.00023521,2]
[388451479,1759174253170,-500.0,0.00023521,2]
[388451480,1759174253181,-1000.0,0.00023521,2]
[388451481,1759174253191,-1000.0,0.00023521,2]
[388451482,1759174253202,-1000.0,0.00023521,2]
[388451483,1759174253216,-1000.0,0.00023521,2]
[388451484,1759174253227,-467.93186595,0.00023521,2]
[388451485,1759174253237,-1000.0,0.00023521,2]
[388451486,1759174253248,-1000.0,0.00023521,2]
[388451487,1759174253260,-1000.0,0.00023521,2]
[388451488,1759174253272,-1000.0,0.00023521,2]
[388451489,1759174253283,-892.72027434,0.00023521,2]
[388451490,1759174253295,-1000.0,0.00023521,2]
[388451491,1759174253306,-1000.0,0.00023521,2]
[388451492,1759174253317,-1000.0,0.00023521,2]
[388451493,1759174253328,-454.15640381,0.00023521,2]
[388451494,1759174253338,-1000.0,0.00023521,2]
[388451495,1759174253348,-1000.0,0.00023521,2]
[388451496,1759174253357,-1000.0,0.00023561,5]
[388451497,1759174253367,-565.80798401,0.00023565,2]
[388451498,1759174253375,-500.0,0.00023573,2]
[388451499,1759174253383,-276.69361139,0.00023573,2]
[388451500,1759174253393,-500.0,0.00023573,2]
[388451501,1759174253403,-500.0,0.00023573,2]
[388451502,1759174253413,-500.0,0.00023573,2]
[388451503,1759174253423,-500.0,0.00023573,2]
[388451504,1759174253433,-500.0,0.00023573,2]
[388451505,1759174253444,-500.0,0.00023573,2]
[388451506,1759174253454,-500.0,0.00023573,2]
[388451507,1759174253463,-500.0,0.00023573,2]
[388451508,1759174253473,-500.0,0.00023573,2]
[388451509,1759174253483,-402.36427122,0.00023573,2]
[388451510,1759174253493,-500.0,0.00023573,2]
[388451511,1759174253503,-617.66842259,0.00023573,2]
[388451512,1759174253512,-500.0,0.00023578,2]
[388451513,1759174253523,-253.66502633,0.00023578,2]
[388451514,1759174253532,-500.0,0.00023578,2]
[388451515,1759174253542,-151.0,0.00023578,2]
[388451516,1759174253552,-151.0,0.00023578,2]
[388451517,1759174253562,-151.15484948,0.00023578,2]
[388451518,1759174253571,-480.0,0.00023578,2]
[388451519,1759174253581,-480.0,0.00023578,2]
[388451520,1759174253591,-341.11617394,0.00023578,3]
[388451521,1759174253601,-166.0,0.00023578,3]
[388451522,1759174253612,-480.0,0.00023578,2]
[388451523,1759174253622,-480.0,0.00023578,2]
[388451524,1759174253632,-480.0,0.00023578,2]
[388451525,1759174253641,-480.0,0.00023578,2]
[388451526,1759174253651,-480.0,0.00023578,2]
[388451527,1759174253661,-558.43,0.00023578,2]
[388451528,1759174253671,-480.0,0.00023578,2]
[388451529,1759174253681,-510.36,0.00023578,2]
[388451530,1759174253691,-493.34,0.00023578,2]
[388451531,1759174253702,-480.0,0.00023578,2]
[388451532,1759174253712,-480.0,0.00023578,2]
[388451533,1759174253721,-1935.38,0.00023578,2]
[388451534,1759174253731,-495.84,0.00023578,2]
[388451535,1759174253742,-480.0,0.00023578,2]
[388451536,1759174253752,-641.18,0.00023578,2]
[388451537,1759174253762,-158.13261555,0.00023578,3]
[388451538,1759174253772,-510.07,0.00023579,2]
[388451539,1759174253783,-480.0,0.00023579,2]
[388451540,1759174253793,-480.0,0.00023579,2]
[388451541,1759174253804,-410.94527968,0.00023579,2]
[388451542,1759174253814,-480.0,0.00023579,2]
[388451543,1759174253826,-480.0,0.00023579,2]
[388451544,1759174253837,-151.0,0.00023579,7]
[388451545,1759174253847,-151.0,0.00023579,7]
[388451546,1759174253857,-480.0,0.00023579,2]
[388451547,1759174253868,-480.0,0.00023579,2]
[388451548,1759174253879,-151.0,0.00023579,7]
[388451549,1759174253889,-151.0,0.00023579,7]
[388451550,1759174253900,-497.05,0.00023579,2]
[388451551,1759174253910,-480.0,0.00023579,2]
[388451552,1759174253919,-151.0,0.00023579,7]
[388451553,1759174253930,-480.0,0.00023579,2]
[388451554,1759174253941,-151.0,0.00023579,7]
[388451555,1759174253951,-480.0,0.00023579,2]
[388451556,1759174253961,-151.0,0.00023579,7]
[388451557,1759174253975,-480.0,0.00023579,2]
[388451558,1759174253986,-151.0,0.00023579,7]
[388451559,1759174253997,-151.0,0.00023579,7]
[388451560,1759174254009,-151.0,0.00023579,7]
[388451561,1759174254018,-151.0,0.00023579,7]
[388451562,1759174254029,-151.0,0.00023579,7]
[388451563,1759174254040,-151.0,0.00023579,7]
[388451564,1759174254050,-151.0,0.00023579,7]
[388451565,1759174254060,-151.0,0.00023579,7]
[388451566,1759174254070,-151.0,0.00023579,7]
[388451567,1759174254080,-151.0,0.00023579,7]
[388451568,1759174254090,-151.0,0.00023579,7]
[388451569,1759174254101,-151.0,0.00023579,7]
[388451570,1759174254111,-151.0,0.00023579,7]
[388451571,1759174254124,-151.0,0.00023579,7]
[388451572,1759174254137,-151.0,0.00023579,7]
[388451573,1759174254148,-151.0,0.00023579,7]
[388451574,1759174254159,-151.0,0.00023579,7]
[388451575,1759174254171,-480.0,0.00023579,2]
[388451576,1759174254182,-151.0,0.00023579,7]
[388451577,1759174254194,-1726.29,0.00023579,2]
[388451578,1759174254205,-151.0,0.00023579,7]
[388451579,1759174254220,-532.04,0.00023579,2]
[388451580,1759174254231,-151.0,0.00023579,7]
[388451581,1759174254241,-151.0,0.00023579,7]
[388451582,1759174254254,-153.871709,0.00023579,7]
[388451583,1759174254264,-548.49,0.00023579,2]
[388451584,1759174254275,-180.758138,0.00023579,7]
[388451585,1759174254287,-180.758138,0.00023579,7]
[388451586,1759174254299,-180.758138,0.00023579,7]
[388451587,1759174254311,-180.758138,0.00023579,7]
[388451588,1759174254321,-151.0,0.00023579,7]
[388451589,1759174254332,-480.0,0.00023579,2]
[388451590,1759174254343,-151.0,0.00023579,7]
[388451591,1759174254353,-151.0,0.00023579,7]
[388451592,1759174254364,-151.0,0.00023579,7]
[388451593,1759174254374,-151.0,0.00023579,7]
[388451594,1759174254384,-480.0,0.00023579,2]
[388451595,1759174254396,-151.0,0.00023579,7]
[388451596,1759174254406,-151.0,0.00023579,7]
[388451597,1759174254416,-527.58,0.00023579,2]
[388451598,1759174254427,-1033.39,0.00023579,2]
[388451599,1759174254436,-480.0,0.00023579,2]
[388451600,1759174254446,-488.07,0.00023579,2]
[388451601,1759174254456,-593.82,0.00023579,2]
[388451602,1759174254466,-151.0,0.00023579,7]
[388451603,1759174254476,-480.0,0.00023579,2]
[388451604,1759174254486,-151.0,0.00023579,7]
[388451605,1759174254495,-151.0,0.00023579,7]
[388451606,1759174254505,-647.67,0.00023579,2]
[388451607,1759174254516,-151.0,0.00023579,7]
[388451608,1759174254526,-151.0,0.00023579,7]
[388451609,1759174254536,-1639.85,0.00023579,2]
[388451610,1759174254706,-151.0,0.00023579,7]
[388451611,1759174254717,-297.861742,0.00023579,7]
[388451612,1759174254727,-625.57673,0.00023579,7]
[388451613,1759174254735,-625.57673,0.00023579,7]
[388451614,1759174254745,-480.0,0.00023579,2]
[388451615,1759174254754,-625.57673,0.00023579,7]
[388451616,1759174254763,-625.57673,0.00023579,7]
[388451617,1759174254771,-480.0,0.00023579,2]
[388451618,1759174254782,-151.0,0.000236,8]
[388451619,1759174254792,-151.0,0.000236,5]
[388451620,1759174254802,-151.0,0.000236,9]
[388451621,1759174254811,-401.230282,0.00023635,7]
[388451622,1759174254820,-401.230282,0.00023635,7]
[388451623,1759174254829,-401.230282,0.00023635,7]
[388451624,1759174254839,-401.230282,0.00023635,7]
[388451625,1759174254847,-151.0,0.00023635,7]
[388451626,1759174254856,-151.0,0.00023635,7]
[388451627,1759174254866,-151.0,0.00023635,7]
[388451628,1759174254875,-151.0,0.00023635,7]
[388451629,1759174254884,-299.54379,0.00023635,7]
[388451630,1759174254893,-151.0,0.00023635,7]
[388451631,1759174254902,-151.0,0.00023635,7]
[388451632,1759174254912,-151.0,0.00023635,7]
[388451633,1759174254921,-151.0,0.00023635,7]
[388451634,1759174254931,-151.0,0.00023635,7]
[388451635,1759174254942,-151.0,0.00023635,7]
[388451636,1759174254951,-169.358262,0.00023635,7]
[388451637,1759174254961,-169.358262,0.00023635,7]
[388451638,1759174254972,-169.358262,0.00023635,7]
[388451639,1759174254981,-169.358262,0.00023635,7]
[388451640,1759174254992,-151.0,0.00023635,7]
[388451641,1759174255001,-151.0,0.00023635,7]
[388451642,1759174255011,-151.0,0.00023635,7]
[388451643,1759174255021,-151.0,0.00023635,7]
[388451644,1759174255031,-13195.00028625,0.0002364,2]
[388451645,1759174255271,-410.39721219,0.00023304,7]
[388451646,1759174255304,-48.70300001,0.00023304,7]
[388451649,1759174288626,-5000.0,0.00022668,2]
[388451653,1759174309079,0.01,0.00022184,2]
[388451654,1759174309102,249.99,0.00022184,2]
[388451655,1759174426951,2000.0,0.00021876,2]
[388451656,1759174427124,2000.0,0.00021876,2]
[388451659,1759174460312,1112.774656,0.00021994,2]
[388451660,1759174547255,171.7965008,0.0002182,2]
[388451661,1759174575815,4465.4488432,0.00021819,2]
[388451662,1759174575838,10000.01,0.00021819,2]
[388451663,1759174575861,10000.01,0.00021819,2]
[388451664,1759174575883,2852.0580049,0.00021819,2]
[388451665,1759174582041,-174.79002097,0.00022729,2]
[388451666,1759174621796,343.6339749,0.00021821,2]
[388451667,1759174627717,729.0,0.00022558,2]
[388451668,1759174632295,729.0,0.00022415,2]
[388451669,1759174637701,729.0,0.00022695,2]
[388451670,1759174648436,168.0,0.00022433,2]
[388451671,1759174652828,168.0,0.00022376,2]
[388451672,1759174703543,744.5331166,0.00022722,2]
[388451694,1759174880226,-2332.87926054,0.0002273,2]
[388451695,1759174880256,-1638.93877617,0.0002273,2]
[388451696,1759174880284,-200.0,0.000228,2]
[388451697,1759174880313,-500.0,0.000228,2]
[388451698,1759174880342,-293.20466806,0.00022813,2]
[388451699,1759174880471,-300.0,0.00022814,2]
[388451700,1759174880500,-300.0,0.00022815,2]
[388451701,1759174880529,-300.0,0.00022815,2]
[388451702,1759174880556,-300.0,0.00022815,2]
[388451703,1759174880585,-300.0,0.00022815,2]
[388451704,1759174880613,-380.78514599,0.00022816,2]
[388451705,1759174880640,-212.2626403,0.00022816,2]
[388451706,1759174880670,-317.2517572,0.00022816,2]
[388451707,1759174880699,-500.0,0.00022816,2]
[388451708,1759174880727,-500.0,0.00022816,2]
[388451709,1759174880758,-500.0,0.00022816,2]
[388451710,1759174880786,-500.0,0.00022816,2]
[388451711,1759174880815,-500.0,0.00022816,2]
[388451712,1759174880921,-500.0,0.00022816,2]
[388451713,1759174880951,-500.0,0.00022816,2]
[388451714,1759174880981,-500.0,0.00022816,2]
[388451715,1759174881010,-500.0,0.00022816,2]
[388451716,1759174881039,-500.0,0.00022816,2]
[388451717,1759174881067,-500.0,0.00022816,2]
[388451718,1759174881096,-500.0,0.00022816,2]
[388451719,1759174881125,-500.0,0.00022816,2]
[388451720,1759174881154,-500.0,0.00022816,2]
[388451721,1759174881183,-500.0,0.00022816,2]
[388451722,1759174881308,-255.77495289,0.00022816,2]
[388451723,1759174881335,-500.0,0.00022816,2]
[388451724,1759174881363,-500.0,0.00022816,2]
[388451725,1759174881390,-553.1263779,0.00022816,2]
[388451726,1759174881418,-500.0,0.00022816,2]
[388451727,1759174881448,-500.0,0.00022816,2]
[388451728,1759174881477,-500.0,0.00022816,2]
[388451729,1759174881506,-500.0,0.00022816,2]
[388451730,1759174881534,-500.0,0.00022816,2]
[388451731,1759174881561,-500.0,0.00022816,2]
[388451732,1759174881923,-500.0,0.00022816,2]
[388451733,1759174881953,-500.0,0.00022816,2]
[388451734,1759174881982,-500.0,0.00022816,2]
[388451735,1759174882010,-500.0,0.00022816,2]
[388451736,1759174882038,-500.0,0.00022816,2]
[388451737,1759174882064,-500.0,0.00022816,2]
[388451738,1759174882093,-500.0,0.00022816,2]
[388451739,1759174882122,-500.0,0.00022816,2]
[388451740,1759174882149,-500.0,0.00022816,2]
[388451741,1759174882176,-336.81498333,0.00022816,2]
[388451742,1759174882330,-500.0,0.00022816,2]
[388451743,1759174882360,-500.0,0.00022816,2]
[388451744,1759174882390,-500.0,0.00022816,2]
[388451745,1759174882418,-500.0,0.00022816,2]
[388451746,1759174882449,-500.0,0.00022816,2]
[388451747,1759174882477,-367.30419266,0.00022816,2]
[388451748,1759174882506,-500.0,0.00022816,2]
[388451749,1759174882535,-500.0,0.00022816,2]
[388451750,1759174882564,-500.0,0.00022816,2]
[388451751,1759174882594,-497.24597735,0.00022816,2]
[388451752,1759174882760,-500.0,0.00022816,2]
[388451753,1759174882790,-500.0,0.00022816,2]
[388451754,1759174882818,-500.0,0.00022816,2]
[388451755,1759174882850,-500.0,0.00022816,2]
[388451756,1759174882876,-500.0,0.00022816,2]
[388451757,1759174882902,-500.0,0.00022816,2]
[388451758,1759174882932,-500.0,0.00022816,2]
[388451759,1759174882963,-630.35571467,0.00022816,2]
[388451760,1759174882991,-500.0,0.00022816,2]
[388451761,1759174883022,-239.29857066,0.00022816,2]
[388451762,1759174883159,-260.70142934,0.00022816,2]
[388451763,1759174883186,-500.0,0.00022816,2]
[388451764,1759174883216,-500.0,0.00022816,2]
[388451765,1759174883249,-500.0,0.00022816,2]
[388451766,1759174883278,-485.95981124,0.00022816,2]
[388451767,1759174883308,-500.0,0.00022816,2]
[388451768,1759174883340,-500.0,0.00022816,2]
[388451769,1759174883372,-500.0,0.00022816,2]
[388451770,1759174883401,-500.0,0.00022816,2]
[388451771,1759174883433,-500.0,0.00022816,2]
[388451772,1759174883467,-6.68751884,0.00022816,2]
[388451773,1759174883611,-493.31248116,0.00022816,2]
[388451774,1759174883641,-500.0,0.00022816,2]
[388451775,1759174883670,-500.0,0.00022816,2]
[388451776,1759174883698,-500.0,0.00022816,2]
[388451777,1759174883726,-500.0,0.00022816,2]
[388451778,1759174883754,-1200.0,0.00022816,2]
[388451779,1759174893380,-480.0,0.00022815,2]
[388451780,1759174898100,-5674.64291324,0.00022817,2]
[388451781,1759174898291,-10000.01,0.00022817,2]
[388451782,1759174898897,-10000.01,0.00022817,2]
[388451783,1759174909979,-10000.01,0.00022817,2]
[388451784,1759174910126,-10000.01,0.00022817,2]
[388451785,1759174910495,-4325.31708676,0.00022817,2]
[388451786,1759174910544,-3421.45,0.00022817,3]
[388451787,1759174910571,-1446.39,0.00022817,3]
[388451788,1759174910635,-264.33,0.00022817,3]
[388451789,1759174910662,-855.36,0.00022817,3]
[388451790,1759174910690,-427.68,0.00022817,3]
[388451791,1759174910717,-213.84,0.00022817,3]
[388451792,1759174910743,-178.2,0.00022817,3]
[388451793,1759174910769,-534.63,0.00022817,3]
[388451794,1759174920158,-480.0,0.00022822,2]
[388451795,1759174920193,-480.0,0.00022822,2]
[388451796,1759174920227,-480.0,0.00022822,2]
[388451797,1759174920265,-480.0,0.00022822,2]
[388451798,1759174920299,-480.0,0.00022822,2]
[388451799,1759174920333,-494.45,0.00022822,2]
[388451800,1759174920365,-480.0,0.00022822,2]
[388451801,1759174920398,-737.5,0.00022822,2]
[388451802,1759174920431,-480.0,0.00022822,2]
[388451803,1759174920471,-336.11,0.00022822,2]
[388451804,1759174920915,-143.89,0.00022822,2]
[388451805,1759174921309,-1575.13,0.00022822,2]
[388451806,1759174921347,-480.0,0.00022822,2]
[388451807,1759174921375,-480.0,0.00022822,2]
[388451808,1759174921403,-480.0,0.00022822,2]
[388451809,1759174921431,-480.0,0.00022822,2]
[388451810,1759174921543,-2993.16,0.00022822,2]
[388451811,1759174921570,-480.0,0.00022822,2]
[388451812,1759174921627,-3154.81,0.00022822,2]
[388451813,1759174921656,-1059.53,0.00022822,2]
[388451814,1759174921686,-480.0,0.00022822,2]
[388451815,1759174921737,-764.37,0.00022822,2]
[388451816,1759174921765,-480.0,0.00022822,2]
[388451817,1759174921792,-480.0,0.00022822,2]
[388451818,1759174921821,-1198.31,0.00022822,2]
[388451819,1759174921850,-480.0,0.00022822,2]
[388451820,1759174921878,-480.0,0.00022822,2]
[388451821,1759174921906,-480.0,0.00022822,2]
[388451822,1759174921937,-168.0,0.00022823,2]
[388451823,1759174921985,-1200.0,0.00022823,2]
[388451824,1759174922014,-480.0,0.00022824,2]
[388451825,1759174922041,-480.0,0.00022824,2]
[388451826,1759174922068,-480.0,0.00022824,2]
[388451827,1759174922095,-480.0,0.00022824,2]
[388451828,1759174922125,-480.0,0.00022824,2]
[388451829,1759174922154,-480.0,0.00022824,2]
[388451830,1759174922180,-480.0,0.00022824,2]
[388451831,1759174922210,-400.01,0.00022824,2]
[388451832,1759174922331,-79.99,0.00022824,2]
[388451833,1759174922383,-480.0,0.00022824,2]
[388451834,1759174922426,-480.0,0.00022824,2]
[388451835,1759174922457,-480.0,0.00022824,2]
[388451836,1759174922483,-495.43616252,0.00022824,2]
[388451837,1759174922511,-480.0,0.00022824,2]
[388451838,1759174922537,-480.0,0.00022824,2]
[388451839,1759174922563,-480.0,0.00022824,2]
[388451840,1759174922590,-518.21598988,0.00022824,2]
[388451841,1759174922618,-480.0,0.00022824,2]
[388451842,1759174922645,-279.7456952,0.00022824,2]
[388451843,1759174923617,-480.0,0.00022824,2]
[388451844,1759174923632,-53.2343048,0.00022824,2]
[388451845,1759174923641,-426.7656952,0.00022824,2]
[388451846,1759174923656,-480.0,0.00022824,2]
[388451847,1759174923674,-480.0,0.00022824,2]
[388451848,1759174923691,-480.0,0.00022824,2]
[388451849,1759174923709,-243.8843048,0.00022824,2]
[388451850,1759174923718,-236.1156952,0.00022824,2]
[388451851,1759174923736,-79.99,0.00022824,2]
[388451852,1759174923762,-163.8943048,0.00022824,2]
[388451853,1759174923772,-316.1056952,0.00022824,2]
[388451854,1759174923800,-480.0,0.00022824,2]
[388451855,1759174923838,-480.0,0.00022824,2]
[388451856,1759174923852,-211.1343048,0.00022824,2]
[388451857,1759174923865,-284.30185772,0.00022824,2]
[388451858,1759174923880,-386.96814228,0.00022824,2]
[388451859,1759174923889,-93.03185772,0.00022824,2]
[388451860,1759174923910,-386.96814228,0.00022824,2]
[388451861,1759174923920,-93.03185772,0.00022824,2]
[388451862,1759174923935,-386.96814228,0.00022824,2]
[388451863,1759174923945,-93.03185772,0.00022824,2]
[388451864,1759174923963,-518.21598988,0.00022824,2]
[388451865,1759174923979,-150.8421524,0.00022824,2]
[388451866,1759174923988,-329.1578476,0.00022824,2]
[388451867,1759174924008,-155.5721524,0.00022824,2]
[388451868,1759174924018,-657.4078476,0.00022824,2]
[388451869,1759174930107,-480.0,0.00022822,2]
[388451870,1759174930140,-510.01,0.00022822,2]
[388451871,1759174930175,-285.1021524,0.00022824,2]
[388451872,1759174930210,-1152.97,0.00022824,2]
[388451873,1759174930244,-480.0,0.00022824,2]
[388451874,1759174930277,-505.59,0.00022824,2]
[388451875,1759174930311,-1488.9,0.00022824,2]
[388451876,1759174930430,-480.0,0.00022824,2]
[388451877,1759174930467,-480.0,0.00022824,2]
[388451878,1759174930501,-1590.72,0.00022824,2]
[388451879,1759174930528,-480.0,0.00022824,2]
[388451880,1759174930556,-480.0,0.00022824,2]
[388451881,1759174930584,-635.06,0.00022824,2]
[388451882,1759174930613,-571.89353867,0.00022824,2]
[388451883,1759174930641,-84.66292266,0.00022824,2]
[388451884,1759174930739,-395.33707734,0.00022824,2]
[388451885,1759174930767,-480.0,0.00022824,2]
[388451886,1759174930795,-1211.02,0.00022824,2]
[388451887,1759174930825,-1117.12,0.00022824,2]
[388451888,1759174930852,-480.0,0.00022825,2]
[388451889,1759174930880,-480.0,0.00022825,2]
[388451890,1759174930907,-480.0,0.00022825,2]
[388451891,1759174930966,-233.05584532,0.00022825,2]
[388451892,1759174931590,-246.94415468,0.00022825,2]
[388451893,1759174931618,-480.0,0.00022825,2]
[388451894,1759174931645,-490.59,0.00022825,2]
[388451895,1759174931671,-480.0,0.00022825,2]
[388451896,1759174931699,-162.33,0.00022825,2]
[388451897,1759174931725,-158.02,0.00022826,2]
[388451898,1759174933255,480.0,0.00022815,2]
[388451899,1759174933332,2220.89,0.00022822,2]
[388451900,1759174934924,3263.35169064,0.00022824,2]
[388451901,1759174934948,5316.48830936,0.00022824,2]
[388451902,1759174935849,480.0,0.00022815,2]
[388451903,1759174937641,1855.6,0.00022824,2]
[388451904,1759174937724,2034.78,0.00022817,3]
[388451905,1759174939698,313.14169064,0.00022826,2]
[388451906,1759174970105,-1092.62585078,0.0002273,2]
[388451907,1759174970134,-480.0,0.00022815,2]
[388451908,1759174970163,-1148.67,0.00022817,3]
[388451909,1759174970189,-574.33,0.00022817,3]
[388451910,1759174970216,-480.0,0.00022822,2]
[388451911,1759174970243,-719.17,0.00022822,2]
[388451912,1759174970270,-480.0,0.00022822,2]
[388451913,1759174970384,-155.95996062,0.00022822,2]
[388451914,1759174970411,-500.0,0.00022822,2]
[388451915,1759174970440,-480.0,0.00022822,2]
[388451916,1759174970468,-480.0,0.00022822,2]
[388451917,1759174970494,-592.09,0.00022822,2]
[388451918,1759174970526,-872.05,0.00022822,2]
[388451919,1759174970555,-500.0,0.00022822,2]
[388451920,1759174970583,-500.0,0.00022822,2]
[388451921,1759174970611,-500.0,0.00022822,2]
[388451922,1759174970638,-339.81007876,0.00022823,2]
[388451923,1759174970729,-287.17,0.00022817,3]
[388451924,1759174970756,-160.18992124,0.00022823,2]
[388451925,1759174970784,-500.0,0.00022823,2]
[388451926,1759174970812,-480.0,0.00022824,2]
[388451927,1759174970839,-2074.43,0.00022824,2]
[388451928,1759174970865,-480.0,0.00022824,2]
[388451929,1759174971001,-2881.79,0.00022824,2]
[388451930,1759174971028,-500.0,0.00022824,2]
[388451931,1759174971055,-886.85830936,0.00022826,2]
[388451932,1759174971083,-500.0,0.00022826,2]
[388451933,1759174971217,-500.0,0.00022826,2]
[388451934,1759174971244,-500.0,0.00022826,2]
[388451935,1759174971273,-500.0,0.00022826,2]
[388451936,1759174971303,-500.0,0.00022826,2]
[388451937,1759174971334,-500.0,0.00022826,2]
[388451938,1759174971364,-500.0,0.00022826,2]
[388451939,1759174971395,-500.0,0.00022826,2]
[388451940,1759174971424,-266.54960219,0.00022826,2]
[388451941,1759174971454,-166.43739689,0.00022826,2]
[388451942,1759174971483,-540.81157696,0.00022826,2]
[388451943,1759174971516,-500.0,0.00022826,2]
[388451944,1759174971806,-500.0,0.00022826,2]
[388451945,1759174971836,-426.31277593,0.00022826,2]
[388451946,1759174971867,-333.02733082,0.00022826,2]
[388451947,1759174971897,-500.0,0.00022826,2]
[388451948,1759174971929,-500.0,0.00022826,2]
[388451949,1759174971959,-165.10664569,0.00022826,2]
[388451950,1759174971989,-500.0,0.00022826,2]
[388451951,1759174972019,-500.0,0.00022826,2]
[388451952,1759174972048,-313.03557147,0.00022826,2]
[388451953,1759174972445,500.0,0.00022826,2]
[388451954,1759174972671,500.0,0.00022826,2]
[388451955,1759174972839,500.0,0.00022826,2]
[388451956,1759174973040,500.0,0.00022826,2]
[388451957,1759174973193,500.0,0.00022826,2]
[388451958,1759174973346,25.04535218,0.00022826,2]
[388451960,1759174990246,-2939.02945922,0.0002273,2]
[388451961,1759174990276,-239.3,0.00022817,3]
[388451962,1759174990303,-807.96,0.00022822,2]
[388451963,1759174990330,-480.0,0.00022822,2]
[388451964,1759174990531,-1604.39,0.00022822,2]
[388451965,1759174990559,-942.5,0.00022822,2]
[388451966,1759174990586,-480.0,0.00022824,2]
[388451967,1759174990616,-474.95464782,0.00022826,2]
[388451968,1759174990643,-366.6,0.00022826,2]
[388451969,1759174990671,-300.0,0.00022826,2]
[388451970,1759174993149,871.11,0.00022824,2]
[388451971,1759174995816,480.0,0.00022822,2]
[388451972,1759174997556,312.01070436,0.00022822,2]
[388451973,1759174997578,169.04539473,0.00022822,2]
[388451974,1759175000293,651.46647699,0.0002273,2]
[388451975,1759175002726,480.0,0.00022822,2]
[388451976,1759175002752,797.71,0.00022817,3]
[388451977,1759175003548,480.0,0.00022822,2]
[388451978,1759175003924,480.0,0.00022822,2]
[388451979,1759175004896,234.52,0.00022826,2]
[388451980,1759175005360,1899.77,0.00022824,2]
[388451981,1759175005558,480.0,0.00022822,2]
[388451982,1759175007872,940.77,0.00022822,2]
[388451983,1759175008196,1054.26,0.00022822,2]
[388451984,1759175008833,480.0,0.00022822,2]
[388451985,1759175010513,480.0,0.00022822,2]
[388451986,1759175014325,548.07,0.00022822,2]
[388451987,1759175015208,509.94,0.00022826,2]